[Event "November 21 Late 2023"]
[Site "https://www.chess.com"]
[Date "2023.11.21"]
[Round "6"]
[White "Van Osch, Mees"]
[Black "Ambartsumova, Karina"]
[Result "0-1"]
[Board "78"]
[TimeControl "180+1"]
[WhiteFideId "1035967"]
[BlackFideId "4166299"]
[WhiteElo "2324"]
[BlackElo "2240"]
[WhiteTeam "NED"]
[BlackTeam "RUS"]
[WhiteClock "0:00:07"]
[BlackClock "0:00:12"]

1. e4 {[%clk 0:03:00]}  e5 {[%clk 0:03:00]} 2. Nf3 {[%clk 0:02:55]}  Nc6 {[%clk 0:02:59]} 3. Bb5 {[%clk 0:02:38]}  Nf6 {[%clk 0:02:59]} 4. O-O {[%clk 0:02:36]}  Nxe4 {[%clk 0:02:59]} 5. d4 {[%clk 0:02:21]}  Nd6 {[%clk 0:02:58]} 6. dxe5 {[%clk 0:02:15]}  Nxb5 {[%clk 0:02:57]} 7. a4 {[%clk 0:02:15]}  Nbd4 {[%clk 0:02:57]} 8. Nxd4 {[%clk 0:02:14]}  Nxd4 {[%clk 0:02:57]} 9. Qxd4 {[%clk 0:02:15]}  Be7 {[%clk 0:02:54]} 10. Nc3 {[%clk 0:02:11]}  O-O {[%clk 0:02:48]} 11. Bf4 {[%clk 0:02:08]}  b6 {[%clk 0:02:17]} 12. Rad1 {[%clk 0:02:01]}  Bc5 {[%clk 0:02:04]} 13. Qd5 {[%clk 0:01:49]}  Rb8 {[%clk 0:02:04]} 14. Rfe1 {[%clk 0:01:40]}  Qe7 {[%clk 0:01:56]} 15. Ne4 {[%clk 0:01:34]}  h6 {[%clk 0:01:23]} 16. c3 {[%clk 0:01:18]}  a5 {[%clk 0:01:21]} 17. Rd3 {[%clk 0:01:10]}  Rd8 {[%clk 0:00:51]} 18. Rg3 {[%clk 0:00:45]}  Bb7 {[%clk 0:00:49]} 19. Qd2 {[%clk 0:00:22]}  Bxe4 {[%clk 0:00:48]} 20. Rxe4 {[%clk 0:00:23]}  Kh7 {[%clk 0:00:41]} 21. Qd3 {[%clk 0:00:22]}  Kh8 {[%clk 0:00:37]} 22. h3 {[%clk 0:00:22]}  Qe6 {[%clk 0:00:37]} 23. Bd2 {[%clk 0:00:16]}  Rg8 {[%clk 0:00:28]} 24. Kh2 {[%clk 0:00:14]}  d6 {[%clk 0:00:28]} 25. exd6 {[%clk 0:00:12]}  Qxd6 {[%clk 0:00:29]} 26. Qxd6 {[%clk 0:00:11]}  Bxd6 {[%clk 0:00:30]} 27. Bf4 {[%clk 0:00:12]}  Bxf4 {[%clk 0:00:28]} 28. Rxf4 {[%clk 0:00:13]}  f6 {[%clk 0:00:29]} 29. Rc4 {[%clk 0:00:12]}  c5 {[%clk 0:00:27]} 30. Re3 {[%clk 0:00:13]}  Rge8 {[%clk 0:00:27]} 31. Rce4 {[%clk 0:00:13]}  Rxe4 {[%clk 0:00:26]} 32. Rxe4 {[%clk 0:00:14]}  b5 {[%clk 0:00:23]} 33. b3 {[%clk 0:00:12]}  c4 {[%clk 0:00:20]} 34. bxc4 {[%clk 0:00:10]}  bxa4 {[%clk 0:00:21]} 35. Re7 {[%clk 0:00:04]}  Ra8 {[%clk 0:00:19]} 36. Re2 {[%clk 0:00:04]}  Rc8 {[%clk 0:00:19]} 37. Re4 {[%clk 0:00:04]}  a3 {[%clk 0:00:19]} 38. c5 {[%clk 0:00:02]}  Rxc5 {[%clk 0:00:19]} 39. Ra4 {[%clk 0:00:03]}  Rxc3 {[%clk 0:00:20]} 40. Rxa5 {[%clk 0:00:04]}  Kh7 {[%clk 0:00:20]} 41. g3 {[%clk 0:00:04]}  Rc2 {[%clk 0:00:19]} 42. Kg2 {[%clk 0:00:04]}  a2 {[%clk 0:00:19]} 43. h4 {[%clk 0:00:05]}  Kg6 {[%clk 0:00:19]} 44. Kf3 {[%clk 0:00:06]}  h5 {[%clk 0:00:19]} 45. Ke3 {[%clk 0:00:06]}  Kf7 {[%clk 0:00:18]} 46. f3 {[%clk 0:00:05]}  Ke6 {[%clk 0:00:18]} 47. Kf4 {[%clk 0:00:05]}  Kd6 {[%clk 0:00:17]} 48. Ke3 {[%clk 0:00:04]}  Kc6 {[%clk 0:00:16]} 49. Kd3 {[%clk 0:00:04]}  Rg2 {[%clk 0:00:16]} 50. Ra7 {[%clk 0:00:03]}  Rxg3 {[%clk 0:00:14]} 51. Rxa2 {[%clk 0:00:03]}  Rxf3+ {[%clk 0:00:14]} 52. Ke4 {[%clk 0:00:03]}  Rh3 {[%clk 0:00:15]} 53. Ra7 {[%clk 0:00:04]}  Rxh4+ {[%clk 0:00:15]} 54. Kf5 {[%clk 0:00:04]}  Rg4 {[%clk 0:00:15]} 55. Re7 {[%clk 0:00:04]}  Kd6 {[%clk 0:00:15]} 56. Re1 {[%clk 0:00:04]}  Rg5+ {[%clk 0:00:14]} 57. Kf4 {[%clk 0:00:05]}  Kd7 {[%clk 0:00:13]} 58. Re2 {[%clk 0:00:05]}  Kd6 {[%clk 0:00:13]} 59. Re8 {[%clk 0:00:05]}  Re5 {[%clk 0:00:13]} 60. Rf8 {[%clk 0:00:05]}  g5+ {[%clk 0:00:12]} 61. Kf3 {[%clk 0:00:06]}  Ke7 {[%clk 0:00:12]} 62. Rh8 {[%clk 0:00:06]}  h4 {[%clk 0:00:13]} 63. Rh7+ {[%clk 0:00:05]}  Ke6 {[%clk 0:00:13]} 64. Rh8 {[%clk 0:00:06]}  Kf5 {[%clk 0:00:14]} 65. Ra8 {[%clk 0:00:05]}  Rb5 {[%clk 0:00:13]} 66. Ra3 {[%clk 0:00:05]}  g4+ {[%clk 0:00:13]} 67. Kg2 {[%clk 0:00:05]}  Kg5 {[%clk 0:00:13]} 68. Rc3 {[%clk 0:00:05]}  Rb2+ {[%clk 0:00:13]} 69. Kh1 {[%clk 0:00:06]}  f5 {[%clk 0:00:13]} 70. Rc1 {[%clk 0:00:06]}  g3 {[%clk 0:00:13]} 71. Rg1 {[%clk 0:00:07]}  Rh2# {[%clk 0:00:12]} 0-1

[Event "November 21 Late 2023"]
[Site "https://www.chess.com"]
[Date "2023.11.21"]
[Round "6"]
[White "Maect19"]
[Black "Omariev, Maksim"]
[Result "0-1"]
[Board "81"]
[TimeControl "180+1"]
[BlackFideId "4193423"]
[WhiteElo "2352"]
[BlackElo "2519"]
[BlackTeam "RUS"]
[WhiteClock "0:00:03"]
[BlackClock "0:00:01"]

1. d4 {[%clk 0:03:00]}  h5 {[%clk 0:02:56]} 2. Nf3 {[%clk 0:02:59]}  h4 {[%clk 0:02:56]} 3. h3 {[%clk 0:02:58]}  e6 {[%clk 0:02:56]} 4. c3 {[%clk 0:02:55]}  d5 {[%clk 0:02:56]} 5. Bf4 {[%clk 0:02:54]}  c5 {[%clk 0:02:55]} 6. e3 {[%clk 0:02:54]}  Nc6 {[%clk 0:02:55]} 7. Nbd2 {[%clk 0:02:54]}  Qb6 {[%clk 0:02:52]} 8. Qb3 {[%clk 0:02:53]}  c4 {[%clk 0:02:43]} 9. Qxb6 {[%clk 0:02:52]}  axb6 {[%clk 0:02:44]} 10. a3 {[%clk 0:02:52]}  b5 {[%clk 0:02:44]} 11. Rc1 {[%clk 0:02:51]}  f6 {[%clk 0:02:18]} 12. Be2 {[%clk 0:02:48]}  g5 {[%clk 0:02:17]} 13. Bh2 {[%clk 0:02:47]}  Bd7 {[%clk 0:02:09]} 14. O-O {[%clk 0:02:46]}  Nh6 {[%clk 0:02:06]} 15. e4 {[%clk 0:02:43]}  Kf7 {[%clk 0:02:04]} 16. Ne1 {[%clk 0:02:30]}  f5 {[%clk 0:01:48]} 17. exd5 {[%clk 0:02:22]}  exd5 {[%clk 0:01:48]} 18. Bf3 {[%clk 0:02:18]}  Be6 {[%clk 0:01:35]} 19. Nc2 {[%clk 0:02:15]}  f4 {[%clk 0:01:01]} 20. Rfe1 {[%clk 0:02:09]}  Bd6 {[%clk 0:01:01]} 21. Bd1 {[%clk 0:01:58]}  Nf5 {[%clk 0:00:55]} 22. Nf3 {[%clk 0:01:55]}  Kf6 {[%clk 0:00:51]} 23. Nd2 {[%clk 0:01:37]}  Bf7 {[%clk 0:00:50]} 24. Bg4 {[%clk 0:01:36]}  Rhe8 {[%clk 0:00:46]} 25. Bxf5 {[%clk 0:01:35]}  Kxf5 {[%clk 0:00:46]} 26. f3 {[%clk 0:01:34]}  Bg6 {[%clk 0:00:42]} 27. Kf1 {[%clk 0:01:31]}  Kf6 {[%clk 0:00:40]} 28. Rxe8 {[%clk 0:01:17]}  Rxe8 {[%clk 0:00:39]} 29. Re1 {[%clk 0:01:15]}  Ne7 {[%clk 0:00:23]} 30. Rc1 {[%clk 0:01:10]}  Bd3+ {[%clk 0:00:18]} 31. Kg1 {[%clk 0:01:01]}  Nf5 {[%clk 0:00:18]} 32. Nf1 {[%clk 0:00:58]}  Re2 {[%clk 0:00:16]} 33. Ne1 {[%clk 0:00:54]}  Rxb2 {[%clk 0:00:08]} 34. Nxd3 {[%clk 0:00:54]}  cxd3 {[%clk 0:00:08]} 35. Rd1 {[%clk 0:00:54]}  Ne3 {[%clk 0:00:02]} 36. Re1 {[%clk 0:00:29]}  Nxf1 {[%clk 0:00:02]} 37. Kxf1 {[%clk 0:00:29]}  Rc2 {[%clk 0:00:01]} 38. Bg1 {[%clk 0:00:19]}  Bxa3 {[%clk 0:00:01]} 39. Rd1 {[%clk 0:00:19]}  Rxc3 {[%clk 0:00:01]} 40. Bf2 {[%clk 0:00:19]}  b4 {[%clk 0:00:01]} 41. Be1 {[%clk 0:00:20]}  Rb3 {[%clk 0:00:01]} 42. Bd2 {[%clk 0:00:18]}  Bb2 {[%clk 0:00:01]} 43. Ke1 {[%clk 0:00:18]}  Bxd4 {[%clk 0:00:02]} 44. Bc1 {[%clk 0:00:15]}  Be3 {[%clk 0:00:02]} 45. Bd2 {[%clk 0:00:13]}  d4 {[%clk 0:00:02]} 46. Rc1 {[%clk 0:00:12]}  Rb2 {[%clk 0:00:02]} 47. Bxb4 {[%clk 0:00:06]}  Rxb4 {[%clk 0:00:02]} 48. Kf1 {[%clk 0:00:03]}  Bxc1 {[%clk 0:00:01]} 0-1

[Event "November 21 Late 2023"]
[Site "https://www.chess.com"]
[Date "2023.11.21"]
[Round "6"]
[White "The_Straightforward_Rook"]
[Black "Bugayev, Vladimir"]
[Result "1-0"]
[Board "82"]
[TimeControl "180+1"]
[BlackFideId "30901480"]
[WhiteElo "2517"]
[BlackElo "2380"]
[BlackTeam "USA"]
[WhiteClock "0:00:37"]
[BlackClock "0:00:00"]

1. e4 {[%clk 0:03:00]}  c6 {[%clk 0:02:59]} 2. Nc3 {[%clk 0:03:00]}  d5 {[%clk 0:03:00]} 3. Nf3 {[%clk 0:03:00]}  dxe4 {[%clk 0:03:00]} 4. Nxe4 {[%clk 0:02:59]}  Nf6 {[%clk 0:03:01]} 5. Qe2 {[%clk 0:03:00]}  Nxe4 {[%clk 0:02:59]} 6. Qxe4 {[%clk 0:03:01]}  Qa5 {[%clk 0:02:59]} 7. Bc4 {[%clk 0:02:52]}  Bf5 {[%clk 0:02:58]} 8. Qe2 {[%clk 0:02:52]}  e6 {[%clk 0:02:57]} 9. O-O {[%clk 0:02:49]}  Be7 {[%clk 0:02:56]} 10. d4 {[%clk 0:02:48]}  Nd7 {[%clk 0:02:57]} 11. Bd2 {[%clk 0:02:45]}  Qd8 {[%clk 0:02:56]} 12. a4 {[%clk 0:02:42]}  a5 {[%clk 0:02:51]} 13. c3 {[%clk 0:02:38]}  O-O {[%clk 0:02:50]} 14. h3 {[%clk 0:02:36]}  Nb6 {[%clk 0:02:40]} 15. Bd3 {[%clk 0:02:31]}  Bxd3 {[%clk 0:02:40]} 16. Qxd3 {[%clk 0:02:32]}  c5 {[%clk 0:02:32]} 17. Qb5 {[%clk 0:02:26]}  c4 {[%clk 0:02:28]} 18. Rfe1 {[%clk 0:02:22]}  Qc7 {[%clk 0:02:18]} 19. Ne5 {[%clk 0:02:20]}  Bd6 {[%clk 0:02:06]} 20. Re4 {[%clk 0:02:09]}  Bxe5 {[%clk 0:02:03]} 21. Rxe5 {[%clk 0:02:07]}  Nd5 {[%clk 0:02:00]} 22. Rae1 {[%clk 0:02:05]}  Qc6 {[%clk 0:01:57]} 23. f4 {[%clk 0:01:55]}  Qxb5 {[%clk 0:01:48]} 24. axb5 {[%clk 0:01:54]}  g6 {[%clk 0:01:49]} 25. g4 {[%clk 0:01:50]}  Rad8 {[%clk 0:01:19]} 26. f5 {[%clk 0:01:50]}  exf5 {[%clk 0:01:17]} 27. gxf5 {[%clk 0:01:51]}  f6 {[%clk 0:01:17]} 28. Re6 {[%clk 0:01:41]}  Kf7 {[%clk 0:01:10]} 29. fxg6+ {[%clk 0:01:36]}  hxg6 {[%clk 0:01:10]} 30. Kf2 {[%clk 0:01:32]}  Rh8 {[%clk 0:00:59]} 31. Kg3 {[%clk 0:01:30]}  Rhe8 {[%clk 0:00:54]} 32. Rxe8 {[%clk 0:01:23]}  Rxe8 {[%clk 0:00:55]} 33. Ra1 {[%clk 0:01:02]}  Re2 {[%clk 0:00:49]} 34. Be1 {[%clk 0:00:57]}  b6 {[%clk 0:00:43]} 35. Rb1 {[%clk 0:00:56]}  g5 {[%clk 0:00:31]} 36. Bf2 {[%clk 0:00:57]}  f5 {[%clk 0:00:28]} 37. Kf3 {[%clk 0:00:57]}  Rc2 {[%clk 0:00:24]} 38. Re1 {[%clk 0:00:49]}  Rxb2 {[%clk 0:00:20]} 39. Re5 {[%clk 0:00:50]}  Ne7 {[%clk 0:00:19]} 40. d5 {[%clk 0:00:50]}  g4+ {[%clk 0:00:16]} 41. hxg4 {[%clk 0:00:48]}  fxg4+ {[%clk 0:00:17]} 42. Kg3 {[%clk 0:00:48]}  Rd2 {[%clk 0:00:16]} 43. Bd4 {[%clk 0:00:47]}  Nxd5 {[%clk 0:00:15]} 44. Rxd5 {[%clk 0:00:47]}  a4 {[%clk 0:00:11]} 45. Rd6 {[%clk 0:00:45]}  a3 {[%clk 0:00:10]} 46. Rxb6 {[%clk 0:00:46]}  a2 {[%clk 0:00:10]} 47. Ra6 {[%clk 0:00:46]}  Rb2 {[%clk 0:00:08]} 48. b6 {[%clk 0:00:46]}  Ke6 {[%clk 0:00:08]} 49. Kxg4 {[%clk 0:00:46]}  Kd7 {[%clk 0:00:08]} 50. Kf3 {[%clk 0:00:43]}  Kc6 {[%clk 0:00:08]} 51. Ke3 {[%clk 0:00:42]}  Kb7 {[%clk 0:00:08]} 52. Ra7+ {[%clk 0:00:42]}  Kb8 {[%clk 0:00:08]} 53. Ra4 {[%clk 0:00:42]}  Kb7 {[%clk 0:00:07]} 54. Ke4 {[%clk 0:00:42]}  Kc6 {[%clk 0:00:07]} 55. Ke5 {[%clk 0:00:42]}  Re2+ {[%clk 0:00:07]} 56. Kf4 {[%clk 0:00:43]}  Rb2 {[%clk 0:00:06]} 57. Ra7 {[%clk 0:00:41]}  Kb5 {[%clk 0:00:02]} 58. b7 {[%clk 0:00:40]}  Kc6 {[%clk 0:00:02]} 59. Ke4 {[%clk 0:00:38]}  Rxb7 {[%clk 0:00:00]} 60. Rxa2 {[%clk 0:00:37]} 1-0

[Event "November 21 Late 2023"]
[Site "https://www.chess.com"]
[Date "2023.11.21"]
[Round "6"]
[White "Marcziter, Dmitrii"]
[Black "Janaszak, Dawid"]
[Result "0-1"]
[Board "85"]
[TimeControl "180+1"]
[WhiteFideId "13900765"]
[BlackFideId "1119206"]
[WhiteElo "2142"]
[BlackElo "2218"]
[WhiteTeam "GER"]
[BlackTeam "POL"]
[WhiteClock "0:00:03"]
[BlackClock "0:01:10"]

1. d4 {[%clk 0:03:00]}  b5 {[%clk 0:02:58]} 2. c3 {[%clk 0:02:59]}  Bb7 {[%clk 0:02:58]} 3. Bf4 {[%clk 0:02:57]}  f5 {[%clk 0:02:57]} 4. Nf3 {[%clk 0:02:55]}  Nf6 {[%clk 0:02:58]} 5. e3 {[%clk 0:02:54]}  e6 {[%clk 0:02:58]} 6. Bxb5 {[%clk 0:02:53]}  Bd6 {[%clk 0:02:54]} 7. Bxd6 {[%clk 0:02:50]}  cxd6 {[%clk 0:02:54]} 8. Bd3 {[%clk 0:02:48]}  O-O {[%clk 0:02:54]} 9. Nbd2 {[%clk 0:02:47]}  Ne4 {[%clk 0:02:48]} 10. Qc2 {[%clk 0:02:44]}  d5 {[%clk 0:02:45]} 11. O-O {[%clk 0:02:43]}  d6 {[%clk 0:02:45]} 12. Ne1 {[%clk 0:02:42]}  Qg5 {[%clk 0:02:44]} 13. f4 {[%clk 0:02:33]}  Qh5 {[%clk 0:02:39]} 14. Nef3 {[%clk 0:02:34]}  Nd7 {[%clk 0:02:38]} 15. Qd1 {[%clk 0:02:28]}  Ndf6 {[%clk 0:02:31]} 16. Bxe4 {[%clk 0:02:27]}  dxe4 {[%clk 0:02:26]} 17. Ng5 {[%clk 0:02:26]}  Qe8 {[%clk 0:02:26]} 18. Qb3 {[%clk 0:02:22]}  Bd5 {[%clk 0:02:26]} 19. c4 {[%clk 0:02:22]}  Bc6 {[%clk 0:02:26]} 20. Qa3 {[%clk 0:02:12]}  h6 {[%clk 0:02:24]} 21. Nh3 {[%clk 0:02:10]}  Qe7 {[%clk 0:02:19]} 22. b4 {[%clk 0:02:08]}  Ng4 {[%clk 0:02:17]} 23. Nf2 {[%clk 0:02:04]}  Nf6 {[%clk 0:02:13]} 24. b5 {[%clk 0:02:03]}  Bb7 {[%clk 0:02:12]} 25. Qb4 {[%clk 0:02:01]}  Rfd8 {[%clk 0:02:04]} 26. a4 {[%clk 0:01:59]}  a6 {[%clk 0:02:04]} 27. a5 {[%clk 0:01:57]}  Qf7 {[%clk 0:02:03]} 28. Nb3 {[%clk 0:01:52]}  g5 {[%clk 0:02:02]} 29. g3 {[%clk 0:01:52]}  gxf4 {[%clk 0:02:01]} 30. gxf4 {[%clk 0:01:52]}  Kh7 {[%clk 0:02:01]} 31. Kh1 {[%clk 0:01:52]}  Qh5 {[%clk 0:02:01]} 32. Nd1 {[%clk 0:01:19]}  Rg8 {[%clk 0:01:46]} 33. Qd2 {[%clk 0:01:17]}  Rg4 {[%clk 0:01:41]} 34. Nc3 {[%clk 0:01:14]}  Rag8 {[%clk 0:01:27]} 35. Rf2 {[%clk 0:01:05]}  Qh3 {[%clk 0:01:18]} 36. Qe2 {[%clk 0:00:12]}  Nh5 {[%clk 0:01:17]} 37. Qe1 {[%clk 0:00:08]}  Ng3+ {[%clk 0:01:14]} 38. Kg1 {[%clk 0:00:07]}  Ne2+ {[%clk 0:01:15]} 39. Kh1 {[%clk 0:00:07]}  Rg2 {[%clk 0:01:10]} 40. Qxe2 {[%clk 0:00:03]}  Qxh2# {[%clk 0:01:10]} 0-1

[Event "November 21 Late 2023"]
[Site "https://www.chess.com"]
[Date "2023.11.21"]
[Round "6"]
[White "Bochnicka, Vladimir"]
[Black "WindWhistler11"]
[Result "0-1"]
[Board "86"]
[TimeControl "180+1"]
[WhiteFideId "14943450"]
[WhiteElo "2170"]
[BlackElo "2554"]
[WhiteTeam "SVK"]
[WhiteClock "0:00:10"]
[BlackClock "0:00:54"]

1. e4 {[%clk 0:03:00]}  e6 {[%clk 0:02:59]} 2. d4 {[%clk 0:03:00]}  d5 {[%clk 0:03:00]} 3. e5 {[%clk 0:03:00]}  c5 {[%clk 0:02:58]} 4. c3 {[%clk 0:02:57]}  Nc6 {[%clk 0:02:58]} 5. Nf3 {[%clk 0:02:55]}  Bd7 {[%clk 0:02:58]} 6. Bd3 {[%clk 0:02:53]}  cxd4 {[%clk 0:02:49]} 7. O-O {[%clk 0:02:46]}  Qb6 {[%clk 0:02:47]} 8. Re1 {[%clk 0:02:43]}  Nge7 {[%clk 0:02:44]} 9. h4 {[%clk 0:02:43]}  Nf5 {[%clk 0:02:42]} 10. Bxf5 {[%clk 0:02:42]}  exf5 {[%clk 0:02:43]} 11. cxd4 {[%clk 0:02:42]}  Be6 {[%clk 0:02:41]} 12. Nc3 {[%clk 0:02:42]}  Be7 {[%clk 0:02:40]} 13. a3 {[%clk 0:02:31]}  Na5 {[%clk 0:02:26]} 14. b4 {[%clk 0:02:22]}  Nc4 {[%clk 0:02:23]} 15. Bg5 {[%clk 0:02:22]}  Bf8 {[%clk 0:02:18]} 16. Na4 {[%clk 0:02:15]}  Qc6 {[%clk 0:02:12]} 17. Nc5 {[%clk 0:02:11]}  h6 {[%clk 0:02:08]} 18. Bf4 {[%clk 0:02:04]}  Be7 {[%clk 0:02:01]} 19. Nd2 {[%clk 0:02:03]}  O-O {[%clk 0:01:51]} 20. h5 {[%clk 0:01:28]}  b6 {[%clk 0:01:37]} 21. Nd3 {[%clk 0:01:28]}  Rac8 {[%clk 0:01:37]} 22. Rc1 {[%clk 0:01:23]}  Qb5 {[%clk 0:01:29]} 23. Qf3 {[%clk 0:01:17]}  Nxa3 {[%clk 0:01:20]} 24. Qg3 {[%clk 0:01:10]}  Kh8 {[%clk 0:01:10]} 25. Rxc8 {[%clk 0:00:26]}  Rxc8 {[%clk 0:01:10]} 26. Ra1 {[%clk 0:00:27]}  Rc3 {[%clk 0:01:04]} 27. Bxh6 {[%clk 0:00:12]}  gxh6 {[%clk 0:00:55]} 28. Qf4 {[%clk 0:00:10]}  Bg5 {[%clk 0:00:54]} 0-1

[Event "November 21 Late 2023"]
[Site "https://www.chess.com"]
[Date "2023.11.21"]
[Round "6"]
[White "Tifferet, Shaked"]
[Black "Batsiashvili, Nino"]
[Result "0-1"]
[Board "90"]
[TimeControl "180+1"]
[WhiteFideId "2811529"]
[BlackFideId "13602993"]
[WhiteElo "2142"]
[BlackElo "2233"]
[WhiteTeam "ISR"]
[BlackTeam "GEO"]
[WhiteClock "0:00:01"]
[BlackClock "0:00:51"]

1. e4 {[%clk 0:03:00]}  e5 {[%clk 0:02:36]} 2. Nf3 {[%clk 0:02:56]}  Nc6 {[%clk 0:02:36]} 3. Nc3 {[%clk 0:02:56]}  Nf6 {[%clk 0:02:36]} 4. Be2 {[%clk 0:02:55]}  d6 {[%clk 0:02:35]} 5. d4 {[%clk 0:02:55]}  Be7 {[%clk 0:02:36]} 6. O-O {[%clk 0:02:50]}  O-O {[%clk 0:02:36]} 7. h3 {[%clk 0:02:47]}  exd4 {[%clk 0:02:32]} 8. Nxd4 {[%clk 0:02:47]}  Bd7 {[%clk 0:02:31]} 9. Bf4 {[%clk 0:02:45]}  Re8 {[%clk 0:02:31]} 10. Nb3 {[%clk 0:02:33]}  Bf8 {[%clk 0:02:27]} 11. Bd3 {[%clk 0:02:17]}  Ne5 {[%clk 0:02:27]} 12. Re1 {[%clk 0:02:13]}  Nxd3 {[%clk 0:02:25]} 13. Qxd3 {[%clk 0:02:11]}  Bc6 {[%clk 0:02:23]} 14. f3 {[%clk 0:02:10]}  g6 {[%clk 0:02:19]} 15. Rad1 {[%clk 0:02:09]}  Bg7 {[%clk 0:02:19]} 16. Nd4 {[%clk 0:02:08]}  Qd7 {[%clk 0:02:16]} 17. Nxc6 {[%clk 0:02:07]}  Qxc6 {[%clk 0:02:17]} 18. Bh2 {[%clk 0:02:01]}  Qb6+ {[%clk 0:02:15]} 19. Kh1 {[%clk 0:01:57]}  Qxb2 {[%clk 0:02:16]} 20. Rb1 {[%clk 0:01:56]}  Qa3 {[%clk 0:02:16]} 21. Rxb7 {[%clk 0:01:48]}  Qc5 {[%clk 0:02:00]} 22. Reb1 {[%clk 0:01:29]}  Qc6 {[%clk 0:01:27]} 23. Ne2 {[%clk 0:01:07]}  Nd7 {[%clk 0:01:05]} 24. Qb5 {[%clk 0:00:51]}  Qxc2 {[%clk 0:01:03]} 25. Rc1 {[%clk 0:00:51]}  Qxa2 {[%clk 0:01:00]} 26. Rcxc7 {[%clk 0:00:31]}  Nc5 {[%clk 0:00:59]} 27. Nc1 {[%clk 0:00:12]}  Qc2 {[%clk 0:00:53]} 28. Nb3 {[%clk 0:00:09]}  Qd1+ {[%clk 0:00:52]} 29. Bg1 {[%clk 0:00:09]}  Nxb7 {[%clk 0:00:52]} 30. Qxb7 {[%clk 0:00:08]}  Rab8 {[%clk 0:00:52]} 31. Qxa7 {[%clk 0:00:05]}  Qxb3 {[%clk 0:00:53]} 32. Kh2 {[%clk 0:00:01]}  Be5+ {[%clk 0:00:51]} 0-1

[Event "November 21 Late 2023"]
[Site "https://www.chess.com"]
[Date "2023.11.21"]
[Round "6"]
[White "RodokininEV"]
[Black "Rios Escobar, Adan"]
[Result "1/2-1/2"]
[Board "92"]
[TimeControl "180+1"]
[BlackFideId "3403645"]
[WhiteElo "2510"]
[BlackElo "2399"]
[BlackTeam "CHI"]
[WhiteClock "0:00:36"]
[BlackClock "0:00:06"]

1. d4 {[%clk 0:03:00]}  Nf6 {[%clk 0:02:54]} 2. c4 {[%clk 0:03:00]}  g6 {[%clk 0:02:55]} 3. Nc3 {[%clk 0:02:59]}  d5 {[%clk 0:02:55]} 4. Nf3 {[%clk 0:02:58]}  Bg7 {[%clk 0:02:55]} 5. Qb3 {[%clk 0:02:58]}  dxc4 {[%clk 0:02:50]} 6. Qxc4 {[%clk 0:02:59]}  O-O {[%clk 0:02:50]} 7. e4 {[%clk 0:02:58]}  Nc6 {[%clk 0:02:45]} 8. Be2 {[%clk 0:02:58]}  e5 {[%clk 0:02:44]} 9. d5 {[%clk 0:02:58]}  Nd4 {[%clk 0:02:45]} 10. Nxd4 {[%clk 0:02:58]}  exd4 {[%clk 0:02:46]} 11. Qxd4 {[%clk 0:02:59]}  c6 {[%clk 0:02:46]} 12. Qd1 {[%clk 0:02:55]}  Re8 {[%clk 0:02:39]} 13. O-O {[%clk 0:02:52]}  Nxe4 {[%clk 0:02:36]} 14. Nxe4 {[%clk 0:02:52]}  Rxe4 {[%clk 0:02:35]} 15. Bf3 {[%clk 0:02:51]}  Re8 {[%clk 0:02:25]} 16. dxc6 {[%clk 0:02:47]}  bxc6 {[%clk 0:02:24]} 17. Bxc6 {[%clk 0:02:42]}  Ba6 {[%clk 0:02:15]} 18. Bxe8 {[%clk 0:02:14]}  Bxf1 {[%clk 0:02:06]} 19. Bxf7+ {[%clk 0:02:10]}  Kxf7 {[%clk 0:02:05]} 20. Qxd8 {[%clk 0:02:08]}  Rxd8 {[%clk 0:02:03]} 21. Kxf1 {[%clk 0:02:09]}  Rd1+ {[%clk 0:01:57]} 22. Ke2 {[%clk 0:02:09]}  Rh1 {[%clk 0:01:56]} 23. g3 {[%clk 0:01:53]}  Bh6 {[%clk 0:01:54]} 24. f4 {[%clk 0:01:50]}  Rxh2+ {[%clk 0:01:55]} 25. Kf3 {[%clk 0:01:46]}  Bg7 {[%clk 0:01:43]} 26. Be3 {[%clk 0:01:40]}  Bxb2 {[%clk 0:01:39]} 27. Rb1 {[%clk 0:01:40]}  a5 {[%clk 0:01:38]} 28. Bf2 {[%clk 0:01:34]}  Bc3 {[%clk 0:01:30]} 29. Rb7+ {[%clk 0:01:34]}  Ke6 {[%clk 0:01:28]} 30. a4 {[%clk 0:01:30]}  Rh1 {[%clk 0:01:23]} 31. Rc7 {[%clk 0:01:28]}  Bb4 {[%clk 0:01:21]} 32. Kg4 {[%clk 0:01:24]}  Rh2 {[%clk 0:00:50]} 33. Bb6 {[%clk 0:01:16]}  Rg2 {[%clk 0:00:22]} 34. Rxh7 {[%clk 0:01:06]}  Be1 {[%clk 0:00:21]} 35. Rh3 {[%clk 0:01:00]}  Kd5 {[%clk 0:00:15]} 36. Kf3 {[%clk 0:00:56]}  Ra2 {[%clk 0:00:14]} 37. Rh6 {[%clk 0:00:53]}  Ra3+ {[%clk 0:00:15]} 38. Ke2 {[%clk 0:00:51]}  Bxg3 {[%clk 0:00:14]} 39. Rxg6 {[%clk 0:00:48]}  Bxf4 {[%clk 0:00:14]} 40. Rg4 {[%clk 0:00:46]}  Rxa4 {[%clk 0:00:12]} 41. Kf3 {[%clk 0:00:45]}  Rb4 {[%clk 0:00:08]} 42. Bxa5 {[%clk 0:00:39]}  Rc4 {[%clk 0:00:07]} 43. Rxf4 {[%clk 0:00:35]}  Rxf4+ {[%clk 0:00:06]} 44. Kxf4 {[%clk 0:00:36]} 1/2-1/2